[Event "NJSK 2018 Jeugd C"]
[Site "Assen, Netherlands"]
[Date "2018.05.02"]
[Round "6.9"]
[White "Bartels, Vladimir"]
[Black "Roebers, Eline"]
[Result "1-0"]
[TimeControl "40/90m+30sec/move"]
[WhiteElo "1757"]
[BlackElo "1961"]

1. e4 {[%clk 01:30:59]} c5 {[%clk 01:30:31]} {[%emt 00:00:29]} 2. Nc3 {[%clk
01:31:24]} {[%emt 00:00:05]} d6 {[%clk 01:30:15]} {[%emt 00:00:47]} 3. f4
{[%clk 01:31:25]} {[%emt 00:00:28]} Nc6 {[%clk 01:29:54]} {[%emt 00:00:51]} 4.
Nf3 {[%clk 01:30:34]} {[%emt 00:01:22]} g6 {[%clk 01:28:27]} {[%emt 00:01:57]}
5. Bc4 {[%clk 01:25:04]} {[%emt 00:05:59]} Bg7 {[%clk 01:22:35]} {[%emt
00:06:22]} 6. O-O {[%clk 01:22:55]} {[%emt 00:02:38]} e6 {[%clk 01:18:57]}
{[%emt 00:04:09]} 7. d3 {[%clk 01:12:53]} {[%emt 00:10:32]} Nge7 {[%clk
01:16:31]} {[%emt 00:02:56]} 8. Qe1 {[%clk 01:06:31]} {[%emt 00:06:51]} O-O
{[%clk 01:14:02]} {[%emt 00:02:59]} 9. Qh4 {[%clk 01:05:38]} {[%emt 00:01:24]}
b6 {[%clk 01:05:10]} {[%emt 00:09:22]} 10. f5 {[%clk 00:45:33]} {[%emt
00:20:35]} exf5 {[%clk 00:54:47]} {[%emt 00:10:53]} 11. Bh6 {[%clk 00:45:40]}
{[%emt 00:00:23]} Ne5 {[%clk 00:40:09]} {[%emt 00:15:09]} 12. Ng5 {[%clk
00:40:36]} {[%emt 00:05:34]} Bf6 {[%clk 00:38:40]} {[%emt 00:01:58]} 13. Bxf8
{[%clk 00:35:00]} {[%emt 00:06:06]} Bxg5 {[%clk 00:38:53]} {[%emt 00:00:17]} 14.
Qxg5 {[%clk 00:34:26]} {[%emt 00:01:04]} Qxf8 {[%clk 00:38:39]} {[%emt
00:00:44]} 15. Nd5 {[%clk 00:32:25]} {[%emt 00:02:31]} N5c6 {[%clk 00:31:46]}
{[%emt 00:07:23]} 16. Nf6+ {[%clk 00:27:53]} {[%emt 00:05:02]} Kh8 {[%clk
00:30:49]} {[%emt 00:01:26]} 17. Rf4 {[%clk 00:26:52]} {[%emt 00:01:31]} Ng8
{[%clk 00:30:11]} {[%emt 00:01:08]} 18. Rh4 {[%clk 00:20:34]} {[%emt 00:06:48]}
Nxf6 {[%clk 00:29:43]} {[%emt 00:00:59]} 19. Qxf6 {[%clk 00:20:58]} {[%emt
00:00:06]} Kg8 {[%clk 00:30:09]} {[%emt 00:00:04]} 20. Rf1 {[%clk 00:18:59]}
{[%emt 00:02:29]} Ne5 {[%clk 00:29:31]} {[%emt 00:01:09]} 21. Rff4 {[%clk
00:16:58]} {[%emt 00:02:30]} Nd7 {[%clk 00:22:59]} {[%emt 00:07:01]} 22. Qg5
{[%clk 00:13:28]} {[%emt 00:04:00]} 1-0

[Event "NJSK 2018 Jeugd C"]
[Site "Assen, Netherlands"]
[Date "2018.05.02"]
[Round "6.10"]
[White "Van der Schaaf, Tristan"]
[Black "Cchung, Nyuk Lyn"]
[Result "1/2-1/2"]
[TimeControl "40/90m+30sec/move"]
[WhiteElo "1647"]
[BlackElo "1796"]

1. d4 {[%clk 01:30:58]} {[%emt 00:00:02]} d5 {[%clk 01:30:53]} {[%emt
00:00:07]} 2. c4 {[%clk 01:31:22]} {[%emt 00:00:07]} dxc4 {[%clk 01:31:18]}
{[%emt 00:00:05]} 3. Nf3 {[%clk 01:31:43]} {[%emt 00:00:08]} Nf6 {[%clk
01:31:07]} {[%emt 00:00:41]} 4. e3 {[%clk 01:29:41]} {[%emt 00:02:33]} Bg4
{[%clk 01:30:34]} {[%emt 00:01:02]} 5. Bxc4 {[%clk 01:29:19]} {[%emt 00:00:52]}
e6 {[%clk 01:30:42]} {[%emt 00:00:21]} 6. O-O {[%clk 01:29:08]} {[%emt
00:00:42]} Be7 {[%clk 01:30:27]} {[%emt 00:00:44]} 7. Nc3 {[%clk 01:27:54]}
{[%emt 00:01:45]} O-O {[%clk 01:29:31]} {[%emt 00:01:26]} 8. h3 {[%clk
01:27:10]} {[%emt 00:01:14]} Bxf3 {[%clk 01:28:13]} {[%emt 00:01:47]} 9. Qxf3
{[%clk 01:27:19]} {[%emt 00:00:22]} c6 {[%clk 01:27:26]} {[%emt 00:01:17]} 10.
Rd1 {[%clk 01:25:37]} {[%emt 00:02:12]} Nbd7 {[%clk 01:26:48]} {[%emt
00:01:08]} 11. b3 {[%clk 01:25:04]} {[%emt 00:01:03]} b5 {[%clk 01:19:34]}
{[%emt 00:07:43]} 12. Bf1 {[%clk 01:23:28]} {[%emt 00:02:07]} Qb6 {[%clk
01:17:49]} {[%emt 00:02:14]} 13. Bb2 {[%clk 01:21:21]} {[%emt 00:02:38]} Rfe8
{[%clk 01:16:01]} {[%emt 00:02:18]} 14. Rac1 {[%clk 01:19:09]} {[%emt
00:02:43]} Rac8 {[%clk 01:14:49]} {[%emt 00:01:42]} 15. e4 {[%clk 01:13:12]}
{[%emt 00:06:26]} a6 {[%clk 01:09:13]} {[%emt 00:06:07]} 16. e5 {[%clk
01:07:14]} {[%emt 00:06:27]} Nd5 {[%clk 01:08:45]} {[%emt 00:00:58]} 17. Nxd5
{[%clk 01:06:37]} {[%emt 00:01:07]} cxd5 {[%clk 01:08:57]} {[%emt 00:00:18]} 18.
Bd3 {[%clk 01:06:10]} {[%emt 00:00:57]} Bg5 {[%clk 01:08:27]} {[%emt 00:00:59]}
19. Rxc8 {[%clk 01:04:19]} {[%emt 00:02:22]} Rxc8 {[%clk 01:08:48]} {[%emt
00:00:09]} 20. Qh5 {[%clk 01:04:34]} {[%emt 00:00:14]} h6 {[%clk 01:07:56]}
{[%emt 00:01:23]} 21. h4 {[%clk 01:01:01]} {[%emt 00:04:03]} Be7 {[%clk
01:07:45]} {[%emt 00:00:41]} 22. Qg4 {[%clk 00:56:38]} {[%emt 00:04:53]} Nb8
{[%clk 01:00:24]} {[%emt 00:07:52]} 23. Bb1 {[%clk 00:50:18]} {[%emt 00:06:50]}
Nc6 {[%clk 00:55:02]} {[%emt 00:05:50]} 24. Kh1 {[%clk 00:47:51]} {[%emt
00:02:57]} Nxe5 {[%clk 00:47:26]} {[%emt 00:08:07]} 25. dxe5 {[%clk 00:47:29]}
{[%emt 00:00:52]} Qxf2 {[%clk 00:47:38]} {[%emt 00:00:18]} 26. Bd4 {[%clk
00:47:11]} {[%emt 00:00:48]} Qxh4 {[%clk 00:47:53]} {[%emt 00:00:14]} 27. Qxh4
{[%clk 00:47:37]} {[%emt 00:00:04]} Bxh4 {[%clk 00:48:16]} {[%emt 00:00:07]} 28.
Bd3 {[%clk 00:45:26]} {[%emt 00:02:42]} f6 {[%clk 00:43:17]} {[%emt 00:05:29]}
29. Rf1 {[%clk 00:40:31]} {[%emt 00:05:25]} Kf7 {[%clk 00:42:34]} {[%emt
00:01:12]} 30. b4 {[%clk 00:39:35]} {[%emt 00:01:28]} f5 {[%clk 00:39:03]}
{[%emt 00:04:01]} 31. Bc5 {[%clk 00:39:33]} {[%emt 00:00:32]} Bg3 {[%clk
00:39:16]} {[%emt 00:00:16]} 32. Bd4 {[%clk 00:38:51]} {[%emt 00:01:12]} g5
{[%clk 00:38:11]} {[%emt 00:01:35]} 33. Rd1 {[%clk 00:33:44]} {[%emt 00:05:37]}
h5 {[%clk 00:35:27]} {[%emt 00:03:14]} 34. Kg1 {[%clk 00:31:20]} {[%emt
00:02:55]} g4 {[%clk 00:34:59]} {[%emt 00:00:57]} 35. Kf1 {[%clk 00:30:49]}
{[%emt 00:01:01]} h4 {[%clk 00:31:20]} {[%emt 00:04:09]} 36. Ke2 {[%clk
00:29:47]} {[%emt 00:01:33]} Kg6 {[%clk 00:26:25]} {[%emt 00:05:24]} 37. Rf1
{[%clk 00:22:21]} {[%emt 00:07:56]} Rc7 {[%clk 00:14:33]} {[%emt 00:12:22]} 38.
Rh1 {[%clk 00:20:57]} {[%emt 00:01:54]} Kg5 {[%clk 00:11:59]} {[%emt 00:03:03]}
39. Rf1 {[%clk 00:15:14]} {[%emt 00:06:13]} Kg6 {[%clk 00:08:01]} {[%emt
00:04:28]} 40. Rh1 {[%clk 00:15:13]} {[%emt 00:00:32]} Kg5 {[%clk 00:07:55]}
{[%emt 00:00:36]} 41. Rf1 {[%clk 00:14:15]} {[%emt 00:01:29]} Bf4 {[%clk
00:07:26]} {[%emt 00:00:59]} 42. Rh1 {[%clk 00:12:24]} {[%emt 00:02:20]} Rc1
{[%clk 00:05:41]} {[%emt 00:02:14]} 43. Rxc1 {[%clk 00:12:24]} {[%emt
00:00:31]} Bxc1 {[%clk 00:06:09]} {[%emt 00:00:02]} 44. a4 {[%clk 00:11:30]}
{[%emt 00:01:25]} Ba3 {[%clk 00:03:31]} {[%emt 00:03:07]} 45. axb5 {[%clk
00:11:24]} {[%emt 00:00:36]} axb5 {[%clk 00:03:59]} {[%emt 00:00:02]} 46. Bc3
{[%clk 00:10:48]} {[%emt 00:01:06]} d4 {[%clk 00:03:16]} {[%emt 00:01:13]} 47.
Bd2+ {[%clk 00:10:46]} {[%emt 00:00:33]} f4 {[%clk 00:03:44]} {[%emt 00:00:01]}
48. Bxb5 {[%clk 00:09:18]} {[%emt 00:01:58]} Kf5 {[%clk 00:04:06]} {[%emt
00:00:08]} 49. Bc6 {[%clk 00:08:49]} {[%emt 00:00:59]} Kxe5 {[%clk 00:04:18]}
{[%emt 00:00:18]} 50. b5 {[%clk 00:08:58]} {[%emt 00:00:21]} Bd6 {[%clk
00:04:33]} {[%emt 00:00:16]} 51. Be1 {[%clk 00:08:05]} {[%emt 00:01:22]} h3
{[%clk 00:04:09]} {[%emt 00:00:54]} 52. gxh3 {[%clk 00:08:14]} {[%emt
00:00:21]} gxh3 {[%clk 00:04:38]} {[%emt 00:00:01]} 53. Kd3 {[%clk 00:07:51]}
{[%emt 00:00:54]} Bb8 {[%clk 00:03:19]} {[%emt 00:01:49]} 54. Bb4 {[%clk
00:06:48]} {[%emt 00:01:33]} Ba7 {[%clk 00:02:57]} {[%emt 00:00:51]} 55. Ba5
{[%clk 00:06:32]} {[%emt 00:00:46]} Kd6 {[%clk 00:02:35]} {[%emt 00:00:52]} 56.
Bb4+ {[%clk 00:05:28]} {[%emt 00:01:33]} Bc5 {[%clk 00:01:52]} {[%emt
00:01:15]} 57. Be1 {[%clk 00:05:16]} {[%emt 00:00:41]} h2 {[%clk 00:01:51]}
{[%emt 00:00:31]} 58. Ba5 {[%clk 00:04:22]} {[%emt 00:01:23]} e5 {[%clk
00:02:05]} {[%emt 00:00:16]} 59. Kc4 {[%clk 00:02:42]} {[%emt 00:02:11]} Ba7
{[%clk 00:02:04]} {[%emt 00:00:31]} 60. Bb4+ {[%clk 00:02:20]} {[%emt
00:00:52]} Kc7 {[%clk 00:02:17]} {[%emt 00:00:16]} 61. Ba5+ {[%clk 00:02:08]}
{[%emt 00:00:43]} Bb6 {[%clk 00:02:01]} {[%emt 00:00:46]} 62. Bb4 {[%clk
00:02:26]} {[%emt 00:00:12]} Ba7 {[%clk 00:02:13]} {[%emt 00:00:18]} 1/2-1/2

[Event "NJSK 2018 Jeugd C"]
[Site "Assen, Netherlands"]
[Date "2018.05.02"]
[Round "6.11"]
[White "Yeh, Timo"]
[Black "Franke, Daniel"]
[Result "1-0"]
[TimeControl "40/90m+30sec/move"]
[WhiteElo "1729"]
[BlackElo "1298"]

1. d4 {[%clk 01:30:57]} {[%emt 00:00:03]} d5 {[%clk 01:30:59]} {[%emt
00:00:01]} 2. Nf3 {[%clk 01:30:55]} {[%emt 00:00:33]} Bf5 {[%clk 01:31:06]}
{[%emt 00:00:22]} 3. Bf4 {[%clk 01:31:21]} {[%emt 00:00:04]} Nf6 {[%clk
01:31:12]} {[%emt 00:00:24]} 4. e3 {[%clk 01:31:47]} {[%emt 00:00:04]} e6
{[%clk 01:31:28]} {[%emt 00:00:14]} 5. c4 {[%clk 01:32:05]} {[%emt 00:00:12]}
c6 {[%clk 01:31:54]} {[%emt 00:00:04]} 6. Nc3 {[%clk 01:32:31]} {[%emt
00:00:05]} Be7 {[%clk 01:31:49]} {[%emt 00:00:35]} 7. Be2 {[%clk 01:32:43]}
{[%emt 00:00:17]} Nbd7 {[%clk 01:32:03]} {[%emt 00:00:17]} 8. O-O {[%clk
01:33:07]} {[%emt 00:00:06]} O-O {[%clk 01:32:26]} {[%emt 00:00:06]} 9. Qb3
{[%clk 01:32:16]} {[%emt 00:01:21]} b6 {[%clk 01:31:56]} {[%emt 00:01:01]} 10.
Rac1 {[%emt 00:06:16]} Nh5 {[%clk 01:26:38]} 11. Bg3 {[%clk 01:32:24]} {[%emt
00:00:23]} Nxg3 {[%clk 01:26:08]} {[%emt 00:01:00]} 12. hxg3 {[%clk 01:32:52]}
{[%emt 00:00:02]} Nf6 {[%clk 01:17:53]} {[%emt 00:08:46]} 13. cxd5 {[%clk
01:33:05]} {[%emt 00:00:17]} cxd5 {[%clk 01:18:00]} {[%emt 00:00:23]} 14. Ne5
{[%clk 01:32:39]} {[%emt 00:00:55]} Bd6 {[%clk 01:07:25]} {[%emt 00:11:05]} 15.
Nc6 {[%clk 01:32:10]} {[%emt 00:00:59]} Qd7 {[%clk 01:06:36]} {[%emt 00:01:19]}
16. Nb5 {[%clk 01:32:13]} {[%emt 00:00:27]} Rfc8 {[%clk 01:05:48]} {[%emt
00:01:17]} 17. Nxd6 {[%clk 01:32:05]} {[%emt 00:00:39]} Qxd6 {[%clk 01:04:57]}
{[%emt 00:01:21]} 18. Nxa7 {[%clk 01:30:24]} {[%emt 00:02:11]} Rd8 {[%clk
01:00:00]} {[%emt 00:05:27]} 19. Nb5 {[%clk 01:30:32]} {[%emt 00:00:22]} Qe7
{[%clk 00:55:17]} {[%emt 00:05:13]} 20. Rc7 {[%clk 01:30:03]} {[%emt 00:00:59]}
Rd7 {[%clk 00:53:39]} {[%emt 00:02:08]} 21. Rfc1 {[%clk 01:29:10]} {[%emt
00:01:23]} Ne8 {[%clk 00:44:57]} {[%emt 00:09:12]} 22. R7c6 {[%clk 01:26:36]}
{[%emt 00:03:04]} Rb8 {[%clk 00:40:54]} {[%emt 00:04:33]} 23. a3 {[%clk
01:24:00]} {[%emt 00:03:07]} h6 {[%clk 00:35:57]} {[%emt 00:05:26]} 24. Bd3
{[%clk 01:18:50]} {[%emt 00:05:40]} Bxd3 {[%clk 00:36:01]} {[%emt 00:00:24]} 25.
Qxd3 {[%clk 01:19:16]} {[%emt 00:00:06]} Rbb7 {[%clk 00:33:01]} {[%emt
00:03:30]} 26. Qb3 {[%clk 01:16:41]} {[%emt 00:03:05]} Nc7 {[%clk 00:26:59]}
{[%emt 00:06:31]} 27. Nxc7 {[%clk 01:15:48]} {[%emt 00:01:23]} Rdxc7 {[%clk
00:27:16]} {[%emt 00:00:14]} 28. Rxc7 {[%clk 01:16:09]} {[%emt 00:00:09]} Rxc7
{[%clk 00:27:42]} {[%emt 00:00:05]} 29. Rxc7 {[%clk 01:16:25]} {[%emt
00:00:13]} Qxc7 {[%clk 00:28:07]} {[%emt 00:00:05]} 30. Qc3 {[%clk 01:16:47]}
{[%emt 00:00:08]} Qd7 {[%clk 00:25:30]} {[%emt 00:03:07]} 31. Qc2 {[%clk
01:12:32]} {[%emt 00:04:45]} Qb5 {[%clk 00:21:11]} {[%emt 00:04:46]} 32. f3
{[%clk 01:12:07]} {[%emt 00:00:58]} g6 {[%clk 00:20:23]} {[%emt 00:01:18]} 33.
Kf2 {[%clk 01:11:55]} {[%emt 00:00:42]} Kg7 {[%clk 00:20:08]} {[%emt 00:00:45]}
34. Ke1 {[%clk 01:06:34]} {[%emt 00:05:50]} Kf6 {[%emt 00:04:24]} 35. b4 {[%clk
01:03:57]} h5 {[%clk 00:17:47]} {[%emt 00:02:05]} 36. Qc3 {[%clk 00:59:24]}
{[%emt 00:05:03]} Qa4 {[%clk 00:15:04]} {[%emt 00:03:09]} 37. Kd2 {[%clk
00:58:34]} {[%emt 00:01:24]} Qa7 {[%clk 00:14:55]} {[%emt 00:00:38]} 38. e4
{[%clk 00:58:35]} {[%emt 00:00:30]} dxe4 {[%clk 00:14:47]} {[%emt 00:00:37]} 39.
fxe4 {[%clk 00:58:42]} {[%emt 00:00:23]} Qd7 {[%clk 00:13:24]} {[%emt
00:01:54]} 40. Ke3 {[%clk 00:58:29]} {[%emt 00:00:43]} Kg5 {[%clk 00:11:53]}
{[%emt 00:02:00]} 41. d5 {[%clk 00:55:33]} {[%emt 00:03:27]} Qd6 {[%clk
00:10:55]} {[%emt 00:01:27]} 42. Kf2 {[%clk 00:55:17]} {[%emt 00:00:46]} exd5
{[%clk 00:09:20]} {[%emt 00:02:06]} 43. Qe3+ {[%clk 00:49:54]} {[%emt
00:05:53]} Kg4 {[%clk 00:03:26]} {[%emt 00:06:24]} 44. e5 {[%clk 00:49:44]}
{[%emt 00:00:39]} Kf5 {[%clk 00:02:20]} {[%emt 00:01:37]} 45. exd6 {[%clk
00:50:07]} {[%emt 00:00:07]} 1-0

[Event "NJSK 2018 Jeugd C"]
[Site "Assen, Netherlands"]
[Date "2018.05.02"]
[Round "6.12"]
[White "Torensma, Christian"]
[Black "Tiggelman, Vincent"]
[Result "1-0"]
[TimeControl "40/90m+30sec/move"]
[WhiteElo "1455"]
[BlackElo "1394"]

1. e4 {[%clk 01:30:59]} c6 {[%clk 01:30:55]} {[%emt 00:00:06]} 2. d4 {[%clk
01:31:22]} {[%emt 00:00:06]} d5 {[%clk 01:31:17]} {[%emt 00:00:08]} 3. Nc3
{[%clk 01:31:48]} {[%emt 00:00:04]} dxe4 {[%clk 01:31:42]} {[%emt 00:00:06]} 4.
Nxe4 {[%clk 01:32:15]} {[%emt 00:00:02]} Bf5 {[%clk 01:32:05]} {[%emt
00:00:06]} 5. Ng3 {[%clk 01:32:37]} {[%emt 00:00:08]} Bg6 {[%clk 01:32:23]}
{[%emt 00:00:13]} 6. h4 {[%clk 01:33:02]} {[%emt 00:00:05]} h6 {[%clk
01:32:42]} {[%emt 00:00:12]} 7. Nf3 {[%clk 01:33:27]} {[%emt 00:00:04]} Nd7
{[%clk 01:32:46]} {[%emt 00:00:26]} 8. h5 {[%clk 01:33:49]} {[%emt 00:00:08]}
Bh7 {[%clk 01:33:10]} {[%emt 00:00:06]} 9. Bd3 {[%clk 01:34:14]} {[%emt
00:00:05]} Bxd3 {[%clk 01:33:29]} {[%emt 00:00:12]} 10. Qxd3 {[%clk 01:34:38]}
{[%emt 00:00:06]} Ngf6 {[%clk 01:33:25]} {[%emt 00:00:33]} 11. Bf4 {[%clk
01:34:10]} {[%emt 00:00:58]} e6 {[%clk 01:33:19]} {[%emt 00:00:36]} 12. O-O-O
{[%clk 01:34:29]} {[%emt 00:00:11]} Bb4 {[%clk 01:22:20]} {[%emt 00:11:29]} 13.
c3 {[%clk 01:34:33]} {[%emt 00:00:26]} Ba5 {[%clk 01:20:20]} {[%emt 00:02:29]}
14. Ne4 {[%clk 01:33:48]} {[%emt 00:01:16]} Nxe4 {[%clk 01:19:56]} {[%emt
00:00:54]} 15. Qxe4 {[%clk 01:34:11]} {[%emt 00:00:07]} Bc7 {[%clk 01:19:38]}
{[%emt 00:00:48]} 16. Bxc7 {[%clk 01:31:56]} {[%emt 00:02:44]} Qxc7 {[%clk
01:19:11]} {[%emt 00:00:58]} 17. Ne5 {[%clk 01:32:05]} {[%emt 00:00:22]} O-O
{[%clk 01:14:49]} {[%emt 00:04:50]} 18. g4 {[%clk 01:30:58]} {[%emt 00:01:37]}
Nxe5 {[%clk 01:10:25]} {[%emt 00:04:55]} 19. dxe5 {[%clk 01:31:02]} {[%emt
00:00:26]} Rfd8 {[%clk 01:10:29]} {[%emt 00:00:26]} 20. f4 {[%clk 01:30:52]}
{[%emt 00:00:40]} Qe7 {[%clk 01:00:33]} {[%emt 00:10:26]} 21. Qe3 {[%clk
01:27:05]} {[%emt 00:04:17]} b6 {[%clk 00:58:59]} {[%emt 00:02:04]} 22. Qg3
{[%clk 01:18:43]} {[%emt 00:08:51]} Rxd1+ {[%clk 00:48:04]} {[%emt 00:11:26]}
23. Rxd1 {[%clk 01:19:07]} {[%emt 00:00:06]} Rd8 {[%clk 00:48:25]} {[%emt
00:00:09]} 24. Rxd8+ {[%clk 01:12:31]} {[%emt 00:07:06]} Qxd8 {[%clk 00:47:40]}
{[%emt 00:01:15]} 25. Qf3 {[%clk 01:12:37]} {[%emt 00:00:25]} Qd5 {[%clk
00:47:53]} {[%emt 00:00:17]} 26. Qxd5 {[%clk 01:12:47]} {[%emt 00:00:19]} cxd5
{[%clk 00:40:54]} {[%emt 00:07:29]} 27. Kd2 {[%clk 01:11:19]} {[%emt 00:01:58]}
f6 {[%clk 00:38:30]} {[%emt 00:02:55]} 28. Kd3 {[%clk 01:07:30]} {[%emt
00:04:19]} fxe5 {[%clk 00:38:08]} {[%emt 00:00:52]} 29. fxe5 {[%clk 01:07:45]}
{[%emt 00:00:15]} g5 {[%clk 00:37:41]} {[%emt 00:00:57]} 30. c4 {[%clk
01:07:00]} {[%emt 00:01:15]} dxc4+ {[%clk 00:37:44]} {[%emt 00:00:27]} 31. Kxc4
{[%clk 01:07:28]} {[%emt 00:00:01]} a6 {[%clk 00:38:06]} {[%emt 00:00:09]} 32.
a4 {[%clk 01:06:26]} {[%emt 00:01:32]} Kf7 {[%clk 00:37:52]} {[%emt 00:00:43]}
33. a5 {[%clk 01:05:43]} {[%emt 00:01:13]} bxa5 {[%clk 00:37:03]} {[%emt
00:01:19]} 34. Kc5 {[%clk 01:04:45]} {[%emt 00:01:27]} Ke7 {[%clk 00:37:07]}
{[%emt 00:00:27]} 35. Kc6 {[%clk 01:04:48]} {[%emt 00:00:27]} a4 {[%clk
00:37:11]} {[%emt 00:00:27]} 36. Kc7 {[%clk 01:05:03]} {[%emt 00:00:14]} a5
{[%clk 00:37:11]} {[%emt 00:00:30]} 37. Kc6 {[%clk 01:05:02]} {[%emt 00:00:31]}
a3 {[%clk 00:36:41]} {[%emt 00:01:00]} 38. bxa3 {[%clk 01:05:24]} {[%emt
00:00:08]} a4 {[%clk 00:36:45]} {[%emt 00:00:26]} 39. Kc7 {[%clk 01:05:49]}
{[%emt 00:00:06]} 1-0

[Event "NJSK 2018 Jeugd C"]
[Site "Assen, Netherlands"]
[Date "2018.05.03"]
[Round "7.1"]
[White "Pham, Khoi"]
[Black "Van Foreest, Machteld"]
[Result "0-1"]
[TimeControl "40/90m+30sec/move"]
[WhiteElo "1983"]
[BlackElo "2132"]

1. e4 {[%clk 01:30:57]} {[%emt 00:00:02]} e5 {[%clk 01:30:58]} {[%emt
00:00:03]} 2. Nf3 {[%clk 01:31:15]} {[%emt 00:00:11]} Nc6 {[%clk 01:31:24]}
{[%emt 00:00:04]} 3. Bb5 {[%clk 01:31:37]} {[%emt 00:00:08]} a6 {[%clk
01:31:49]} {[%emt 00:00:06]} 4. Ba4 {[%clk 01:32:02]} {[%emt 00:00:04]} Nf6
{[%clk 01:32:17]} {[%emt 00:00:02]} 5. O-O {[%clk 01:32:20]} {[%emt 00:00:11]}
Be7 {[%clk 01:32:45]} {[%emt 00:00:03]} 6. Re1 {[%clk 01:32:28]} {[%emt
00:00:21]} b5 {[%clk 01:33:07]} {[%emt 00:00:09]} 7. Bb3 {[%clk 01:32:46]}
{[%emt 00:00:12]} O-O {[%clk 01:33:27]} {[%emt 00:00:10]} 8. a4 {[%clk
01:32:46]} {[%emt 00:00:30]} b4 {[%clk 01:33:53]} {[%emt 00:00:05]} 9. d3
{[%clk 01:32:31]} {[%emt 00:00:44]} d6 {[%clk 01:33:56]} {[%emt 00:00:28]} 10.
Nbd2 {[%clk 01:31:20]} {[%emt 00:01:40]} a5 {[%clk 01:31:56]} {[%emt 00:02:31]}
11. h3 {[%clk 01:26:56]} {[%emt 00:04:53]} Kh8 {[%clk 01:18:36]} {[%emt
00:13:50]} 12. c3 {[%clk 01:17:56]} {[%emt 00:09:30]} bxc3 {[%clk 01:12:40]}
{[%emt 00:06:26]} 13. bxc3 {[%clk 01:18:17]} {[%emt 00:00:09]} Ba6 {[%clk
01:11:39]} {[%emt 00:01:31]} 14. Nc4 {[%clk 01:05:04]} {[%emt 00:13:42]} Rb8
{[%clk 01:07:23]} {[%emt 00:04:46]} 15. d4 {[%clk 01:01:28]} {[%emt 00:04:06]}
exd4 {[%clk 01:03:27]} {[%emt 00:04:27]} 16. cxd4 {[%clk 01:01:16]} {[%emt
00:00:42]} d5 {[%clk 00:59:06]} {[%emt 00:04:52]} 17. Nce5 {[%clk 00:56:03]}
{[%emt 00:05:43]} Nxe5 {[%clk 00:54:25]} {[%emt 00:05:10]} 18. Nxe5 {[%clk
00:53:32]} {[%emt 00:03:01]} Bb7 {[%clk 00:51:31]} {[%emt 00:03:25]} 19. exd5
{[%clk 00:35:09]} {[%emt 00:18:53]} Bxd5 {[%clk 00:40:05]} {[%emt 00:11:55]} 20.
Bc2 {[%clk 00:29:17]} {[%emt 00:06:22]} Bb4 {[%clk 00:34:11]} {[%emt 00:06:24]}
21. Re3 {[%clk 00:19:59]} {[%emt 00:09:48]} Ba8 {[%clk 00:25:10]} {[%emt
00:09:32]} 22. Qd3 {[%clk 00:14:28]} {[%emt 00:06:00]} Qd5 {[%clk 00:23:47]}
{[%emt 00:01:53]} 23. f3 {[%clk 00:10:54]} {[%emt 00:04:04]} c5 {[%clk
00:22:51]} {[%emt 00:01:26]} 24. Bb2 {[%clk 00:02:51]} {[%emt 00:08:33]} Rbd8
{[%clk 00:21:07]} {[%emt 00:02:15]} 25. Ng4 {[%clk 00:02:18]} {[%emt 00:01:03]}
c4 {[%clk 00:18:39]} {[%emt 00:02:58]} 26. Qe2 {[%clk 00:01:47]} {[%emt
00:01:01]} Nxg4 {[%clk 00:18:01]} {[%emt 00:01:07]} 27. hxg4 {[%clk 00:02:13]}
{[%emt 00:00:04]} c3 {[%clk 00:17:08]} {[%emt 00:01:23]} 28. Bxc3 {[%clk
00:02:02]} {[%emt 00:00:41]} Bxc3 {[%clk 00:17:17]} {[%emt 00:00:21]} 29. Rxc3
{[%clk 00:02:30]} {[%emt 00:00:03]} Qxd4+ {[%clk 00:16:56]} {[%emt 00:00:51]}
30. Qe3 {[%clk 00:02:57]} {[%emt 00:00:02]} Qxe3+ {[%clk 00:16:24]} {[%emt
00:01:02]} 31. Rxe3 {[%clk 00:03:23]} {[%emt 00:00:04]} Rd2 {[%clk 00:09:03]}
{[%emt 00:07:51]} 32. Bb3 {[%clk 00:03:40]} {[%emt 00:00:14]} Bd5 {[%clk
00:09:10]} {[%emt 00:00:23]} 33. Rae1 {[%clk 00:03:12]} {[%emt 00:00:57]} Bxb3
{[%clk 00:08:53]} {[%emt 00:00:48]} 34. Rxb3 {[%clk 00:03:34]} {[%emt
00:00:09]} Ra2 {[%clk 00:08:13]} {[%emt 00:01:09]} 35. Re4 {[%clk 00:03:40]}
{[%emt 00:00:23]} h6 {[%clk 00:08:13]} {[%emt 00:00:31]} 36. Rb7 {[%clk
00:02:39]} {[%emt 00:01:31]} Rd8 {[%clk 00:06:53]} {[%emt 00:01:50]} 37. Rxf7
{[%clk 00:02:13]} {[%emt 00:00:56]} Rdd2 {[%clk 00:06:43]} {[%emt 00:00:40]} 38.
Ree7 {[%clk 00:01:02]} {[%emt 00:01:40]} Rxg2+ {[%clk 00:07:03]} {[%emt
00:00:09]} 39. Kf1 {[%clk 00:01:05]} {[%emt 00:00:28]} Rgf2+ {[%clk 00:06:29]}
{[%emt 00:01:04]} 40. Kg1 {[%clk 00:01:25]} {[%emt 00:00:10]} Rfb2 {[%clk
00:06:17]} {[%emt 00:00:42]} 41. Re1 {[%clk 00:01:52]} {[%emt 00:00:03]} Rxa4
{[%clk 00:05:43]} {[%emt 00:01:04]} 42. Rf5 {[%clk 00:01:00]} {[%emt 00:01:22]}
Raa2 {[%clk 00:05:17]} {[%emt 00:00:57]} 43. Rc5 {[%clk 00:00:56]} {[%emt
00:00:33]} a4 {[%clk 00:05:08]} {[%emt 00:00:39]} 44. Rcc1 {[%clk 00:00:56]}
{[%emt 00:00:31]} a3 {[%emt 00:00:12]} 45. Ra1 {[%clk 00:01:22]} {[%emt
00:00:03]} Rxa1 {[%clk 00:05:47]} {[%emt 00:00:08]} 46. Rxa1 {[%clk 00:01:49]}
{[%emt 00:00:04]} a2 {[%clk 00:06:13]} {[%emt 00:00:04]} 0-1